bitfinex/quotes_BTCUSD_20260215
["timestamp","ask_amount","ask_price","bid_price","bid_amount"]
[1771185922624,0.000314,68295.0,68286.0,0.32657035]
[1771185922823,0.000314,68295.0,68287.0,0.15960487]
[1771185923036,0.000314,68295.0,68287.0,0.18261522]
[1771185923237,0.000314,68295.0,68288.0,0.02301035]
[1771185923446,0.0004,68304.0,68286.0,0.30356]
[1771185923768,0.00052909,68304.0,68291.0,0.15960487]
[1771185924005,0.00052909,68304.0,68292.0,0.15960487]
[1771185924298,0.00052909,68304.0,68294.0,0.02301035]
[1771185924464,0.00052909,68304.0,68296.0,0.02301035]
[1771185924657,0.0004,68297.0,68296.0,0.18261522]
[1771185925048,0.00052909,68304.0,68296.0,0.15960487]
[1771185926164,0.00052909,68304.0,68296.0,0.18261522]
[1771185926358,0.00052909,68304.0,68297.0,0.02301035]
[1771185927475,0.00052909,68304.0,68281.0,0.21436809]
[1771185927476,0.02258977,68303.0,68293.0,0.0938]
[1771185927692,0.02258977,68303.0,68294.0,0.30448]
[1771185930874,0.00052909,68304.0,68294.0,0.30448]
[1771185931519,0.0004,68303.0,68294.0,0.30448]
[1771185932495,0.0004,68303.0,68294.0,0.32749035]
[1771185932665,0.0004,68303.0,68294.0,0.31749035]
[1771185933080,0.0004,68303.0,68294.0,0.29448]
[1771185934190,0.0004,68303.0,68295.0,0.30464]
[1771185935049,0.0004,68303.0,68296.0,0.30464]
[1771185935269,0.02298977,68303.0,68296.0,0.29464]
[1771185935673,0.0004,68303.0,68296.0,0.29464]
[1771185935873,0.0004,68303.0,68296.0,0.47725522]
[1771185937297,0.0004,68303.0,68296.0,0.31765035]
[1771185937500,0.0004,68303.0,68296.0,0.29464]
[1771185940884,0.0004,68303.0,68293.0,0.0938]
[1771185941087,0.02258977,68302.0,68294.0,0.30532]
[1771185941465,0.02258977,68302.0,68293.0,0.0938]
[1771185941675,0.02258977,68302.0,68294.0,0.30532]
[1771185945224,0.0004,68303.0,68294.0,0.30532]
[1771185946379,0.0004,68303.0,68295.0,0.3058]
[1771185948072,0.0004,68303.0,68295.0,0.25007625]
[1771185950235,0.01372648,68302.0,68295.0,0.25007625]
[1771185950475,0.0004,68303.0,68295.0,0.25007625]
[1771185950672,0.01372648,68302.0,68295.0,0.25007625]
[1771185950910,0.0004,68303.0,68295.0,0.25007625]
[1771185951123,0.01372648,68302.0,68295.0,0.25027625]
[1771185951253,0.0004,68303.0,68295.0,0.25027625]
[1771185951453,0.01372844,68302.0,68295.0,0.25027625]
[1771185951657,0.0004,68303.0,68295.0,0.25027625]
[1771185951878,0.01372844,68302.0,68295.0,0.25027625]
[1771185952078,0.0004,68303.0,68295.0,0.25027625]
[1771185954160,0.11701086,68322.0,68296.0,0.17237975]
[1771185954356,0.0938,68324.0,68296.0,0.17237975]
[1771185954357,0.02459746,68319.0,68303.0,0.17277975]
[1771185954497,0.02459746,68329.0,68304.0,0.82190979]
[1771185954697,0.03832447,68328.0,68311.0,0.02293492]
[1771185954902,0.01372701,68327.0,68312.0,0.32969492]
[1771185955138,0.02459746,68328.0,68313.0,0.17237975]
[1771185955139,0.01372701,68326.0,68313.0,0.17237975]
[1771185955342,0.02459746,68328.0,68314.0,0.19531467]
[1771185955598,0.01371569,68327.0,68318.0,0.51518979]
[1771185955737,0.02494476,68334.0,68318.0,0.71050446]
[1771185955977,0.02494476,68334.0,68318.0,0.71034316]
[1771185955978,0.01371557,68333.0,68318.0,0.71034316]
[1771185956179,0.01371557,68332.0,68319.0,0.02293492]
[1771185956558,0.02494476,68334.0,68319.0,0.02293492]
[1771185956559,0.02494476,68334.0,68320.0,0.32981492]
[1771185956716,0.0137063,68333.0,68320.0,0.32981492]
[1771185956926,0.02507385,68334.0,68320.0,0.32981492]
[1771185957084,0.0137063,68333.0,68320.0,0.32981492]
[1771185957284,0.02507385,68334.0,68320.0,0.32981492]
[1771185958534,0.02507385,68334.0,68320.0,1.01738446]
[1771185959304,0.02547385,68334.0,68320.0,1.01738446]
[1771185959947,0.00087639,68334.0,68322.0,0.02293492]
[1771185960171,0.00087639,68334.0,68320.0,0.82206979]
[1771185960172,0.00087639,68334.0,68324.0,0.02293492]
[1771185960447,0.00087639,68334.0,68325.0,0.30732]
[1771185960669,0.00087639,68334.0,68309.0,0.20360925]
[1771185960670,0.07002,68333.0,68312.0,0.17237975]
[1771185960885,0.07002,68333.0,68314.0,0.30736]
[1771185960886,0.02459746,68327.0,68314.0,0.30736]
[1771185961300,0.02459746,68327.0,68314.0,0.47973975]
[1771185961517,0.07002,68333.0,68317.0,0.51518979]
[1771185961745,0.07002,68333.0,68321.0,0.17237975]
[1771185962129,0.02459746,68332.0,68321.0,0.17237975]
[1771185962319,0.02459746,68332.0,68316.0,0.3074]
[1771185962320,0.02459746,68330.0,68316.0,0.3074]
[1771185962519,0.02459746,68330.0,68316.0,0.47977975]
[1771185962729,0.02459746,68330.0,68311.0,0.17237975]
[1771185962994,0.02459746,68327.0,68315.0,0.3074]
[1771185964066,0.02459746,68325.0,68311.0,0.17237975]
[1771185965664,0.02459746,68318.0,68301.0,0.26808]
[1771185965859,0.02459746,68318.0,68302.0,0.17237975]
[1771185966072,0.02459746,68318.0,68302.0,0.19531467]
[1771185966516,0.14319946,68326.0,68309.0,0.17237975]
[1771185966517,0.02459746,68325.0,68309.0,0.17237975]
[1771185966746,0.02459746,68325.0,68309.0,0.19531467]
[1771185966980,0.0004,68318.0,68309.0,0.19531467]
[1771185967611,0.0004,68318.0,68309.0,0.17237975]
[1771185967824,0.0004,68325.0,68311.0,0.17237975]
[1771185968053,0.0004,68325.0,68313.0,0.19531467]
[1771185968265,0.0004,68325.0,68314.0,0.02293492]
[1771185968475,0.0004,68325.0,68315.0,0.17237975]
[1771185968918,0.0004,68325.0,68315.0,0.0075433]
[1771185969124,0.0004,68325.0,68305.0,0.30776]
[1771185969125,0.02459746,68320.0,68305.0,0.30776]
[1771185969383,0.02459746,68320.0,68303.0,0.30776]
[1771185969384,0.51500475,68320.0,68303.0,0.30776]
[1771185969604,0.02459746,68319.0,68303.0,0.48013975]
[1771185969813,0.02459746,68319.0,68303.0,0.30776]
[1771185969997,0.02459746,68319.0,68304.0,0.17237975]
[1771185970205,0.02459746,68319.0,68305.0,0.02293492]
[1771185970413,0.02459746,68319.0,68306.0,0.17237975]
[1771185970860,0.0096,68325.0,68306.0,0.17237975]
[1771185971073,0.02459746,68324.0,68308.0,0.17237975]
[1771185971286,0.02459746,68324.0,68308.0,0.19531467]
[1771185972193,0.0096,68325.0,68311.0,0.19531467]
[1771185972411,0.0096,68325.0,68313.0,0.17237975]
[1771185972635,0.01366405,68329.0,68315.0,0.17237975]
[1771185972851,0.01366405,68329.0,68319.0,0.51500475]
[1771185973066,0.30141366,68331.0,68320.0,0.19531467]
[1771185973738,0.37143366,68331.0,68320.0,0.19531467]
[1771185973959,0.00229563,68330.0,68320.0,0.19531467]
[1771185974318,0.00229563,68330.0,68315.0,0.18183206]
[1771185974532,0.00229563,68330.0,68316.0,0.02260333]
[1771185974736,0.51730038,68330.0,68316.0,0.02260333]
[1771185975066,0.59047528,68330.0,68316.0,0.02260333]
[1771185975265,0.07002,68329.0,68316.0,0.02260333]
[1771185976009,0.07002,68329.0,68316.0,0.18183206]
[1771185976282,0.07002,68329.0,68319.0,0.51500475]
[1771185976584,0.07002,68329.0,68317.0,0.02260333]
[1771185977081,0.08898484,68329.0,68316.0,0.15922873]
[1771185977586,0.00229563,68328.0,68316.0,0.15922873]
[1771185977962,0.00229563,68328.0,68313.0,0.02260333]
[1771185977963,0.00229563,68328.0,68313.0,0.18183206]
[1771185978588,0.00229563,68328.0,68314.0,0.18183206]
[1771185978887,0.00229563,68328.0,68315.0,0.02260333]
[1771185979034,0.00229563,68328.0,68315.0,0.18183206]
[1771185979900,0.00229563,68328.0,68304.0,0.09376]
[1771185979901,0.16236659,68325.0,68309.0,0.30828]
[1771185980098,0.51500475,68320.0,68304.0,0.15922873]
[1771185980300,0.01896484,68317.0,68297.0,0.02260333]
[1771185980609,0.01896484,68317.0,68296.0,0.0002]
[1771185980610,0.01896484,68317.0,68303.0,0.18183206]
[1771185980919,0.01896484,68317.0,68304.0,0.18183206]
[1771185981251,0.01896484,68324.0,68305.0,0.02260333]
[1771185981446,0.01896484,68324.0,68308.0,0.15922873]
[1771185981649,0.01896484,68324.0,68308.0,0.18183206]
[1771185981847,0.00229563,68323.0,68310.0,0.51500475]
[1771185983004,0.00229563,68323.0,68311.0,0.18183206]
[1771185983477,0.00229563,68323.0,68311.0,0.02260333]
[1771185984700,0.02126047,68323.0,68308.0,0.15922873]
[1771185985312,0.00229563,68323.0,68310.0,0.15922873]
[1771185985516,0.00229563,68323.0,68311.0,0.02260333]
[1771185985693,0.00229563,68323.0,68311.0,0.18183206]
[1771185986322,0.00229563,68323.0,68311.0,0.15922873]
[1771185986525,0.00229563,68323.0,68314.0,0.02260333]
[1771185986735,0.00229563,68323.0,68315.0,0.18183206]
[1771185987139,0.00229563,68323.0,68310.0,0.51500475]
[1771185987350,0.0004,68332.0,68312.0,0.02260333]
[1771185987572,0.0004,68332.0,68320.0,0.53760808]
[1771185987573,0.07002,68330.0,68320.0,0.53760808]
[1771185987770,0.07002,68330.0,68317.0,0.15922873]
[1771185988019,0.07002,68330.0,68313.0,0.2528]
[1771185988020,0.08898484,68330.0,68314.0,0.02260333]
[1771185988202,0.08898484,68330.0,68314.0,0.18183206]
[1771185988430,0.08898484,68330.0,68315.0,0.18183206]
[1771185989082,0.01896484,68329.0,68315.0,0.02260333]
[1771185989282,0.01896484,68329.0,68313.0,0.2528]
[1771185989639,0.07317733,68328.0,68304.0,0.02260333]
[1771185989782,0.16236659,68327.0,68308.0,0.30852]
[1771185989991,0.01896484,68326.0,68308.0,0.30852]
[1771185990398,0.01896484,68326.0,68310.0,0.51500475]
[1771185991293,0.01896484,68326.0,68311.0,0.15922873]
[1771185991521,0.58502475,68330.0,68312.0,0.02260333]
[1771185991522,0.07002,68330.0,68312.0,0.02260333]
[1771185991732,0.07002,68330.0,68310.0,0.51500475]
[1771185992101,0.01896484,68327.0,68310.0,0.51500475]
[1771185992276,0.07002,68330.0,68315.0,0.02260333]
[1771185992475,0.07002,68330.0,68316.0,0.15922873]
[1771185992924,0.01936484,68331.0,68316.0,0.15922873]
[1771185993271,0.01936484,68331.0,68316.0,0.18183206]
[1771185993702,0.01936484,68331.0,68310.0,0.53760808]
[1771185993703,0.01896484,68329.0,68310.0,0.53760808]
[1771185994001,0.01896484,68329.0,68311.0,0.30872]
[1771185994398,0.01896484,68329.0,68311.0,0.46794873]
[1771185994766,0.01896484,68329.0,68311.0,0.49055206]
[1771185995903,0.01896484,68329.0,68312.0,0.18183206]
[1771185996056,0.01896484,68329.0,68313.0,0.02260333]
[1771185996250,0.01896484,68329.0,68314.0,0.15922873]
[1771185996449,0.01896484,68329.0,68315.0,0.18183206]
[1771185996657,0.01896484,68329.0,68316.0,0.02260333]
[1771185997087,0.01896484,68329.0,68316.0,0.18183206]
[1771185998048,0.0004,68331.0,68316.0,0.15922873]
[1771185998256,0.0004,68331.0,68319.0,0.02260333]
[1771185998666,0.01936484,68331.0,68314.0,0.15922873]
[1771185998835,0.01936484,68331.0,68314.0,0.18214563]
[1771185999223,0.01936484,68331.0,68314.0,0.18183206]
[1771186000761,0.01896484,68328.0,68312.0,0.0002]
[1771186001242,0.0004,68329.0,68319.0,0.15922873]
[1771186001444,0.0004,68329.0,68321.0,0.15922873]
[1771186001893,0.0004,68329.0,68321.0,0.18183206]
[1771186002671,0.0004,68329.0,68321.0,0.02260333]
[1771186004400,0.0004,68329.0,68322.0,0.15901579]
[1771186004817,0.0004,68331.0,68323.0,0.0226705]
[1771186005025,0.0004,68331.0,68325.0,0.0226705]
[1771186005651,0.0004,68331.0,68327.0,0.18168629]
[1771186005818,0.0004,68331.0,68323.0,0.0226705]
[1771186006028,0.0004,68331.0,68324.0,0.15901579]
[1771186006231,0.0004,68331.0,68324.0,0.18168629]
[1771186006807,0.0004,68332.0,68326.0,0.15901579]
[1771186008045,0.0004,68332.0,68325.0,0.0226705]
[1771186009529,0.0004,68332.0,68322.0,0.15901579]
[1771186013491,0.00012909,68334.0,68332.0,0.0996]
[1771186013794,0.01909393,68334.0,68332.0,0.09919999]
[1771186014674,0.00012909,68334.0,68332.0,0.09919999]
[1771186018782,0.00052909,68334.0,68332.0,0.09919999]
[1771186020103,0.07315995,68344.0,68332.0,0.09919999]
[1771186020104,0.0004,68348.0,68334.0,0.15901579]
[1771186020337,0.17449425,68359.0,68334.0,0.15901579]
[1771186020338,0.0003006,68359.0,68338.0,1.02945394]
[1771186020573,0.49079423,68369.0,68338.0,1.02945394]
[1771186020574,0.0003006,68376.0,68350.0,0.15901579]
[1771186020770,0.01372049,68375.0,68362.0,0.15901579]
[1771186020975,0.01372049,68374.0,68362.0,0.15901579]
[1771186021186,0.01372049,68373.0,68363.0,0.18168629]
[1771186021404,0.00035723,68376.0,68363.0,0.18168629]
[1771186021926,0.00035723,68376.0,68365.0,0.15901579]
[1771186022167,0.00035723,68376.0,68360.0,0.57833985]
[1771186022168,0.31516,68380.0,68369.0,0.15901579]
[1771186022429,0.31516,68380.0,68372.0,0.0226705]
[1771186022622,0.01896484,68379.0,68369.0,5.663e-05]
[1771186024588,0.09208707,68379.0,68369.0,5.663e-05]
[1771186024793,0.07312613,68376.0,68355.0,0.48980629]
[1771186024985,0.02310372,68376.0,68356.0,0.15901579]
[1771186025193,0.02297484,68375.0,68356.0,0.18168629]
[1771186025597,0.02297484,68375.0,68357.0,0.0226705]
[1771186025734,0.02297484,68375.0,68357.0,0.18168629]
[1771186025944,0.02297484,68375.0,68357.0,0.15901579]
[1771186026180,0.00012888,68376.0,68351.0,0.30804]
[1771186026181,0.00012888,68376.0,68361.0,0.15901579]
[1771186026379,0.00012888,68376.0,68362.0,0.0226705]
[1771186026996,0.02297484,68375.0,68362.0,0.0226705]
[1771186029963,0.02297484,68375.0,68361.0,0.15901579]
[1771186030135,0.02147484,68375.0,68361.0,0.15901579]
[1771186030353,0.02147484,68375.0,68323.0,0.36357019]
[1771186030354,0.02147484,68369.0,68330.0,0.57841343]
[1771186030561,0.02147484,68367.0,68343.0,0.0226705]
[1771186030755,0.02147484,68367.0,68346.0,0.15901579]
[1771186030906,0.02147484,68367.0,68349.0,0.0226705]
[1771186031103,0.17419365,68367.0,68341.0,0.0226705]
[1771186031348,0.17419365,68366.0,68343.0,0.0226705]
[1771186031535,0.02147484,68365.0,68345.0,0.18168629]
[1771186031962,0.38893568,68368.0,68347.0,0.15901579]
[1771186031963,0.3158,68368.0,68347.0,0.15901579]
[1771186032120,0.3158,68368.0,68349.0,0.15901579]
[1771186032316,0.3158,68368.0,68351.0,0.15901579]
[1771186032513,0.3158,68368.0,68353.0,0.15901579]
[1771186032727,0.3158,68368.0,68355.0,0.15901579]
[1771186032933,0.3158,68368.0,68356.0,0.18168629]
[1771186035114,0.3158,68368.0,68357.0,0.02429862]
[1771186035322,0.3158,68368.0,68350.0,0.57841343]
[1771186035323,0.00052888,68376.0,68360.0,0.17331039]
[1771186035455,0.00052888,68376.0,68350.0,0.57841343]
[1771186035456,0.00052888,68376.0,68363.0,0.02429862]
[1771186035660,0.00052888,68376.0,68350.0,0.57841343]
[1771186035661,0.00052888,68376.0,68365.0,0.02429862]
[1771186036660,0.00052888,68376.0,68365.0,0.19760901]
[1771186036850,0.00052888,68376.0,68368.0,0.2]
[1771186037904,0.00052888,68376.0,68368.0,0.22429862]
[1771186038456,0.00052888,68376.0,68369.0,0.02429862]
[1771186038667,0.00954604,68390.0,68371.0,0.02429862]
[1771186038876,0.00965924,68390.0,68372.0,0.17331039]
[1771186039099,0.00965924,68390.0,68374.0,0.02429862]
[1771186039322,0.0001132,68390.0,68376.0,0.17331039]
[1771186039496,0.00465924,68394.0,68377.0,0.02429862]
[1771186039722,0.00465924,68394.0,68377.0,0.02441182]
[1771186039877,0.00465924,68394.0,68377.0,0.19772221]
[1771186040083,0.00465924,68393.0,68377.0,0.02441182]
[1771186040333,0.07310492,68395.0,68377.0,0.02441182]
[1771186040534,0.00465924,68395.0,68377.0,0.17342359]
[1771186040751,0.00465924,68395.0,68377.0,0.19772221]
[1771186041294,0.00465924,68395.0,68378.0,0.02429862]
[1771186041550,0.07337529,68401.0,68382.0,0.17331039]
[1771186041551,0.0002766,68401.0,68382.0,0.17331039]
[1771186041760,0.0002766,68401.0,68386.0,0.17331039]
[1771186041988,0.57841343,68410.0,68377.0,0.0001132]
[1771186041989,0.00465924,68412.0,68392.0,0.17331039]
[1771186042367,0.00465924,68412.0,68394.0,0.19760901]
[1771186042618,0.31572,68416.0,68397.0,0.02429862]
[1771186042834,0.31572,68416.0,68399.0,0.02429862]
[1771186043026,0.31572,68416.0,68399.0,0.19760901]
[1771186043438,0.0940542,68420.0,68400.0,0.0313534]
[1771186043640,0.0940542,68420.0,68383.0,0.3064]
[1771186043641,0.0003342,68420.0,68404.0,0.0313534]
[1771186043862,0.0003342,68420.0,68407.0,0.17331039]
[1771186044047,0.00046313,68420.0,68409.0,0.0313534]
[1771186044644,0.00046313,68420.0,68409.0,0.20466379]
[1771186044844,0.00046313,68420.0,68410.0,0.0313534]
[1771186045245,0.00046313,68420.0,68411.0,0.17331039]
[1771186045693,0.38596716,68436.0,68414.0,0.0313534]
[1771186045694,0.17496362,68436.0,68414.0,0.0313534]
[1771186045912,0.07349111,68436.0,68415.0,0.20462379]
[1771186046138,0.07002,68435.0,68416.0,0.0313334]
[1771186046652,0.0004,68420.0,68418.0,0.0313334]
[1771186046824,0.0004,68420.0,68419.0,0.0313334]
[1771186047229,0.0004,68420.0,68414.0,0.0313334]
[1771186047581,0.0004,68420.0,68415.0,0.0313334]
[1771186047806,0.0004,68420.0,68417.0,0.0313334]
[1771186048012,0.0004,68420.0,68417.0,0.20464379]
[1771186048212,0.0004,68420.0,68417.0,0.17331039]
[1771186048414,0.0004,68420.0,68418.0,0.0313334]
[1771186049656,0.11872778,68440.0,68419.0,0.17331039]
[1771186049825,0.17496362,68456.0,68430.0,0.57841343]
[1771186050183,0.17496362,68456.0,68430.0,0.0313334]
[1771186050184,0.57841343,68450.0,68430.0,0.0313334]
[1771186050390,0.17496362,68449.0,68430.0,0.0313334]
[1771186050723,0.17496362,68450.0,68430.0,0.0313334]
[1771186051124,0.24800997,68450.0,68430.0,0.0313334]
[1771186051329,0.17496362,68450.0,68431.0,0.17331039]
[1771186052041,0.17496362,68450.0,68431.0,0.20464379]
[1771186052714,0.17596362,68450.0,68431.0,0.17331039]
[1771186052886,0.57941343,68450.0,68431.0,0.17331039]
[1771186053101,0.57941343,68450.0,68430.0,0.0313334]
[1771186053102,0.0001926,68451.0,68430.0,0.57841343]
[1771186053418,0.0001926,68451.0,68419.0,0.00042959]
[1771186053419,0.001,68450.0,68433.0,0.0313334]
[1771186054218,0.001,68450.0,68436.0,0.17331039]
[1771186054376,0.001,68450.0,68437.0,0.0313334]
[1771186054738,0.0001926,68451.0,68437.0,0.0313334]
[1771186054942,0.0011926,68451.0,68437.0,0.0313334]
[1771186055449,0.0011926,68451.0,68425.0,0.30532]
[1771186055450,0.0004,68450.0,68439.0,0.0313334]
[1771186055602,0.0004,68450.0,68440.0,0.20464379]
[1771186055965,0.0004,68450.0,68422.0,0.0313334]
[1771186056171,0.17496362,68448.0,68427.0,0.0313334]
[1771186056376,0.17496362,68448.0,68427.0,0.20464379]
[1771186056612,0.17496362,68448.0,68428.0,0.0313334]
[1771186056827,0.17509245,68448.0,68428.0,0.0313334]
[1771186056996,0.17509245,68448.0,68428.0,0.17331039]
[1771186057201,0.17509245,68448.0,68429.0,0.20464379]
[1771186057413,0.17509245,68448.0,68430.0,0.20464379]
[1771186059966,0.00012883,68448.0,68430.0,0.20464379]
[1771186060628,0.00012883,68448.0,68430.0,0.20448248]
[1771186060847,0.07014883,68448.0,68430.0,0.20448248]
[1771186061468,0.07014883,68448.0,68431.0,0.03125275]
[1771186061660,0.07014883,68448.0,68433.0,0.03125275]
[1771186061909,0.07014883,68448.0,68436.0,0.17331039]
[1771186062077,0.75337705,68443.0,68419.0,0.17331039]
[1771186062283,0.57841343,68440.0,68422.0,0.02531864]
[1771186062508,0.07305235,68445.0,68424.0,0.02531864]
[1771186062670,0.07305235,68445.0,68426.0,0.02531864]
[1771186062881,0.07305099,68446.0,68426.0,0.02531864]
[1771186063618,0.07305099,68446.0,68427.0,0.0002]
[1771186063784,0.75059374,68440.0,68427.0,0.0002]
[1771186063997,0.17218031,68439.0,68427.0,0.0002]
[1771186064384,0.07305882,68438.0,68427.0,0.0002]
[1771186064729,0.17268204,68437.0,68427.0,0.0002]
[1771186064927,0.17268204,68436.0,68427.0,0.0002]
[1771186065063,0.24574319,68436.0,68427.0,0.0002]
[1771186065266,0.17268204,68434.0,68416.0,0.02531899]
[1771186065564,0.17268204,68436.0,68413.0,0.02469552]
[1771186065766,0.09364,68437.0,68413.0,0.02469552]
[1771186065767,0.02380296,68431.0,68413.0,0.02469552]
[1771186066033,0.02380296,68429.0,68413.0,0.02469552]
[1771186068560,0.02380296,68429.0,68413.0,0.02039552]
[1771186069334,0.02380296,68429.0,68411.0,0.16724076]
[1771186069335,0.09687246,68429.0,68411.0,0.16724076]
[1771186069519,0.02380296,68428.0,68411.0,0.16724076]
[1771186069872,0.07307062,68427.0,68411.0,0.16724076]
[1771186070069,0.07307062,68427.0,68400.0,0.09919999]
[1771186070070,0.31556,68430.0,68412.0,0.02469552]
[1771186070304,0.31556,68430.0,68415.0,0.16724076]
[1771186070505,0.31556,68430.0,68416.0,0.19193628]
[1771186071062,0.31556,68430.0,68416.0,0.19236587]
[1771186071764,0.02380296,68433.0,68416.0,0.19236587]
[1771186072028,0.01364826,68432.0,68416.0,0.19236587]
[1771186072198,0.01364826,68431.0,68416.0,0.19236587]
[1771186072383,0.01364826,68430.0,68416.0,0.19236587]
[1771186072587,0.01364826,68429.0,68416.0,0.19236587]
[1771186072792,0.02380296,68431.0,68416.0,0.19236587]
[1771186072993,0.01365545,68430.0,68416.0,0.19236587]
[1771186073203,0.01365545,68429.0,68416.0,0.19236587]
[1771186073403,0.01365545,68428.0,68416.0,0.19256587]
[1771186073748,0.02380296,68431.0,68416.0,0.19256587]
[1771186073950,0.07306968,68428.0,68416.0,0.00062959]
[1771186074090,0.02380296,68427.0,68416.0,0.00062959]
[1771186074305,0.33948296,68427.0,68416.0,0.00062959]
[1771186074976,0.31568,68427.0,68416.0,0.00062959]
[1771186075179,0.11568,68427.0,68416.0,0.00062959]
[1771186075852,0.11568,68427.0,68416.0,0.19256587]
[1771186076051,0.11568,68427.0,68416.0,0.02532511]
[1771186079217,0.11568,68427.0,68416.0,0.00062959]
[1771186079994,0.02380296,68426.0,68416.0,0.00062959]
[1771186080718,0.07002,68425.0,68416.0,0.00062959]
[1771186080913,0.02380296,68424.0,68416.0,0.00062959]
[1771186082119,0.07002,68425.0,68400.0,0.09919999]
[1771186082120,0.07308119,68418.0,68400.0,0.09919999]
[1771186082322,0.02380296,68415.0,68402.0,0.0002]
[1771186082522,0.11568,68427.0,68402.0,0.19213628]
[1771186082523,0.07002,68414.0,68402.0,0.19213628]
[1771186082723,0.07002,68414.0,68403.0,0.02469552]
[1771186083152,0.0335713,68414.0,68406.0,0.16724076]
[1771186083355,0.0335713,68414.0,68408.0,0.02469552]
[1771186084587,0.0335713,68414.0,68403.0,0.16724076]
[1771186084812,0.0335713,68414.0,68403.0,0.19193628]
[1771186085033,0.02380296,68421.0,68403.0,0.19193628]
[1771186085482,0.57764419,68420.0,68402.0,0.0002]
[1771186085698,0.57764419,68412.0,68390.0,0.16724076]
[1771186085911,0.00517804,68408.0,68393.0,0.0001527]
[1771186086332,0.07321569,68412.0,68395.0,0.02469552]
[1771186086333,0.00012881,68412.0,68395.0,0.02469552]
[1771186086590,0.00012881,68412.0,68396.0,0.02469552]
[1771186086800,0.00530685,68412.0,68396.0,0.02469552]
[1771186088433,0.00530685,68412.0,68393.0,0.0001527]
[1771186088434,0.07309096,68408.0,68393.0,0.0001527]
[1771186088682,0.00517804,68407.0,68393.0,0.0001527]
[1771186089387,0.00012881,68412.0,68394.0,0.16724076]
[1771186089537,0.00012881,68412.0,68397.0,0.02469552]
[1771186089733,0.00012881,68412.0,68398.0,0.16724076]
[1771186089939,0.00012881,68412.0,68398.0,0.19193628]
[1771186090159,0.00012881,68412.0,68398.0,0.16724076]
[1771186090360,0.15059225,68447.0,68393.0,0.0001527]
[1771186090361,0.17268204,68432.0,68402.0,0.02469552]
[1771186090591,0.31516,68426.0,68404.0,0.02469552]
[1771186090893,0.31516,68426.0,68407.0,0.02469552]
[1771186091054,0.31516,68426.0,68408.0,0.02469552]
[1771186094276,0.00573518,68430.0,68412.0,0.02309487]
[1771186094440,0.01368133,68429.0,68414.0,0.02309487]
[1771186094648,0.01368133,68428.0,68414.0,0.02309487]
[1771186094843,0.00533518,68429.0,68414.0,0.02309487]
[1771186095045,0.17332443,68427.0,68406.0,0.02309487]
[1771186095222,0.00533518,68426.0,68408.0,0.02309487]
[1771186095423,0.57804419,68430.0,68409.0,0.17210498]
[1771186095424,0.0004,68430.0,68409.0,0.17210498]
[1771186095594,0.08370309,68429.0,68412.0,0.02309487]
[1771186095795,0.01368309,68428.0,68414.0,0.17210498]
[1771186096033,0.07002,68429.0,68415.0,0.02309487]
[1771186096243,0.07002,68429.0,68417.0,0.02309487]
[1771186096444,0.07002,68429.0,68419.0,0.02309487]
[1771186097935,0.07002,68429.0,68419.0,0.17210498]
[1771186098103,0.07002,68429.0,68420.0,0.02309487]
[1771186098319,0.07002,68429.0,68421.0,0.02309487]
[1771186098507,0.07002,68429.0,68423.0,0.02309487]
[1771186098760,0.2431,68439.0,68425.0,0.02309487]
[1771186098961,0.2431,68439.0,68427.0,0.19519985]
[1771186099888,0.0004,68429.0,68428.0,0.02309487]
[1771186100086,0.0004,68429.0,68428.0,0.19519985]
[1771186101241,0.0004,68429.0,68421.0,0.02309487]
[1771186101452,0.0004,68429.0,68423.0,0.02309487]
[1771186101677,0.0004,68429.0,68401.0,0.09364]
[1771186101678,0.0004,68429.0,68401.0,0.17210498]
[1771186101923,0.02310194,68429.0,68401.0,0.17210498]
[1771186102142,0.02310194,68429.0,68400.0,0.78994419]
[1771186102143,0.02270194,68427.0,68405.0,0.17210498]
[1771186102355,0.02270194,68427.0,68407.0,0.17210498]
[1771186102563,0.02270194,68427.0,68410.0,0.02309487]
[1771186102768,0.02270194,68427.0,68410.0,0.19519985]
[1771186103425,0.02270194,68427.0,68411.0,0.02309487]
[1771186103875,0.02270194,68427.0,68412.0,0.02309487]
[1771186104603,0.0004,68429.0,68414.0,0.02309487]
[1771186104850,0.0004,68429.0,68414.0,0.17210498]
[1771186105052,0.0004,68429.0,68415.0,0.02309487]
[1771186105432,0.02310194,68429.0,68415.0,0.02309487]
[1771186105637,0.07002,68428.0,68415.0,0.02309487]
[1771186106075,0.07002,68428.0,68416.0,0.17210498]
[1771186106281,0.07002,68428.0,68415.0,0.02309487]
[1771186106483,0.02270194,68427.0,68411.0,0.02309487]
[1771186108058,0.57764419,68421.0,68400.0,0.2123]
[1771186108290,0.16366,68428.0,68400.0,0.2123]
[1771186108291,0.02270194,68416.0,68400.0,0.2123]
[1771186108413,0.02270194,68415.0,68400.0,0.2123]
[1771186109232,0.02270194,68415.0,68402.0,0.0002]
[1771186109458,0.09272194,68415.0,68402.0,0.00032881]
[1771186111135,0.02270194,68414.0,68402.0,0.00032881]
[1771186111825,0.02270194,68413.0,68402.0,0.00032881]
[1771186112061,0.02270194,68411.0,68400.0,0.2123]
[1771186112268,0.02283077,68411.0,68400.0,0.2123]
[1771186112693,0.02270194,68409.0,68400.0,0.2123]
[1771186113344,0.02270194,68409.0,68391.0,0.17229248]
[1771186113345,0.02270194,68401.0,68391.0,0.0001875]
[1771186114171,0.09364,68410.0,68391.0,0.0001875]
[1771186114377,0.09364,68410.0,68395.0,0.17210498]
[1771186114589,0.09364,68410.0,68398.0,0.02309487]
[1771186114809,0.09364,68410.0,68391.0,0.0001875]
[1771186114810,0.09364,68410.0,68399.0,0.19519985]
[1771186115792,0.09364,68410.0,68400.0,0.02309487]
[1771186115982,0.09364,68410.0,68401.0,0.17210498]
[1771186117377,0.00395413,68409.0,68401.0,0.17210498]
[1771186117824,0.00395413,68409.0,68402.0,0.19519985]
[1771186118665,0.00012883,68411.0,68404.0,0.17210498]
[1771186118878,0.00012883,68411.0,68406.0,0.17194376]
[1771186119079,0.00012883,68411.0,68407.0,0.19519985]
[1771186119684,0.00012883,68411.0,68407.0,0.19503859]
[1771186119897,0.17332443,68410.0,68394.0,0.0002]
[1771186120102,0.02485825,68409.0,68394.0,0.0002]
[1771186120515,0.02485825,68408.0,68394.0,0.0002]
[1771186120926,0.02485825,68408.0,68394.0,0.17230498]
[1771186121155,0.02485825,68408.0,68395.0,0.02309487]
[1771186121370,0.02485825,68408.0,68395.0,0.19519985]
[1771186121987,0.02485825,68408.0,68395.0,0.17210498]
[1771186122743,0.02485825,68408.0,68394.0,0.0002]
[1771186123122,0.02485825,68408.0,68394.0,0.17230498]
[1771186123329,0.02485825,68408.0,68394.0,0.19539985]
[1771186123730,0.02485825,68408.0,68395.0,0.0246109]
[1771186123959,0.02485825,68408.0,68396.0,0.1572577]